Workbook

Sheet BUDGET 2023
B1: 2020 ACTUAL | D1: 2021 BUDGET | F1: 2021 ACTUAL | H1: 2022 BUDGET | J1: 2022 ACTUAL | L1: 2023 Proposed Budget
A2: INCOME
A3: 360.00 · Drought Relief Grant | B3: 0 | D3: 0 | F3: 0 | H3: 0 | J3: 135000 | L3: 0
A4: 324.10 · Frost Protection Income | B4: 4194 | D4: 4194 | F4: 3581.39 | H4: 3581 | J4: 2814 | L4: 4500
A5: 345.00 · Income - Permits & Fees | B5: 55 | D5: 0 | F5: 0 | H5: 1000 | J5: 0 | L5: 1000
A6: 306.00 · Interest Pool Account #5940 | B6: 8254.17 | D6: 8500 | F6: 3860.83 | H6: 4000 | J6: 5450.3 | L6: 7000
A7: 306.20 · Interest Pool Account #5941 | B7: 3876.3 | D7: 4000 | F7: 1714.17 | H7: 2000 | J7: 1622.78 | L7: 2000
A8: 301.00 · Joint Works & Assessments | B8: 32081.06 | D8: 25000 | F8: 23529.21 | H8: 25000 | J8: 15141.76 | L8: 28000
A9: 300.10 · Labor & Materials | B9: 0 | D9: 500 | F9: 0 | H9: 500 | J9: 1215.42 | L9: 500
A10: 300.20 · Lien Search | B10: 50680 | D10: 40000 | F10: 53975 | H10: 50000 | J10: 46310 | L10: 55000
A11: 311.00 · Miscellaneous | B11: 6734.23 | D11: 500 | F11: 72890.46 | H11: 500 | J11: 397 | L11: 500
A12: 307.11 · SDAO Safety | B12: 0 | D12: 0 | F12: 0 | H12: 0 | J12: 0 | L12: 5000
A13: 307.00 · SDIS Longevity Credit- SDAO | B13: 3297.5 | D13: 3297 | F13: 3297.5 | H13: 3297 | J13: 4886 | L13: 5000
A14: 316.00 · Transfer Processing Fees | B14: 18305.25 | D14: 6000 | F14: 2964 | H14: 6000 | J14: 2660 | L14: 8000
A15: 314.00 · Water Right Sales | B15: 0 | D15: 10000 | F15: 0 | H15: 10000 | J15: 0
A16: 306.41 · Water User Late Fees | B16: 10125 | D16: 9000 | F16: 9045.1 | H16: 9000 | J16: 9675 | L16: 10000
A17: 306.40 · Water User Payment Interest | B17: 15531.92 | D17: 10000 | F17: 18986.33 | H17: 15000 | J17: 17298.02 | L17: 15500
A18: 328.00 · W.U. Liens Processing Fees | B18: 5400 | D18: 3000 | F18: 0 | H18: 3000 | J18: 0 | L18: 5000 | M18: 2 | N18: 3 | O18: 4
A19: 305.00 · Water User Revenue | B19: 1238415.25 | D19: 1136668 | F19: 1149302.13 | H19: 1145668 | J19: 1149125.05 | L19: 1145000 | M19: 24310.5 | N19: 36465.75 | O19: 48621
A20: TOTAL | B20: =SUM(B3:B19) -> 1396949.68 | D20: =SUM(D3:D19) -> 1260659 | F20: =SUM(F3:F19) -> 1343146.12 | H20: =SUM(H3:H19) -> 1278546 | J20: =SUM(J3:J19) -> 1391595.33 | L20: =SUM(L3:L19) -> 1292000 | M20: 12,155.25 Acres 1373 Accounts
A22: EXPENSE
A23: 506.00 · AD - Canal & Bank | B23: 0 | D23: 300 | F23: 303.68 | H23: 300 | J23: 0 | L23: 500
A24: 511.00 · AD - Dam Repair (Fish, 4 mile) | B24: 181.85 | D24: 200 | F24: 38.92 | H24: 200 | J24: 0 | L24: 500
A25: 500.40 · AD-Elect-Lake CK/SF/NF DIV | B25: 237.7 | D25: 900 | F25: 236.59 | H25: 900 | J25: 0 | L25: 500
A26: 512.00 · AD - F L Cabin Repair / Permit | B26: 212.35 | D26: 250 | F26: 220.84 | H26: 250 | J26: 0 | L26: 500
A27: 515.00 · AD - Gages (Fish, 4 mile) | B27: 0 | D27: 100 | F27: 0 | H27: 100 | J27: 0 | L27: 500
A28: 514.00 · AD - Hydro/Telem-Maint / Cells | B28: 3955.67 | D28: 1900 | F28: 4162.26 | H28: 3500 | J28: 856.91 | L28: 4000
A29: 508.00 · AD - Repair Spillways | B29: 0 | D29: 100 | F29: 0 | H29: 100 | J29: 0 | L29: 500
A30: 500.45 · AD-NF-SF Fish Facilities | B30: 2988.82 | D30: 1000 | F30: 85.81 | H30: 1000 | J30: 129.95 | L30: 1000
A31: 517.00 · AD - Slide Gate | B31: 0 | D31: 250 | F31: 0 | H31: 250 | J31: 0 | L31: 500
A32: 540.00 · AD - Snowmobile Rental | B32: 1050 | D32: 1400 | F32: 1200 | H32: 1400 | J32: 450 | L32: 1500
A33: 415.00 Attorney FeesLegal | B33: 320 | D33: 0 | F33: 6170.55 | H33: 5000 | J33: 0 | L33: 5000
A34: 416.00 · Audit | B34: 12750 | D34: 12750 | F34: 20250 | H34: 15000 | J34: 17750 | L34: 23000
A35: 415.01 · Bank Fees/Checking Acct | B35: 1391.3 | D35: 1600 | F35: 1623.63 | H35: 1600 | J35: 785.25 | L35: 1500
A36: 756.00 · Bear Creek - Automated Gates | B36: 237.84 | D36: 200 | F36: 0 | H36: 500 | J36: 0 | L36: 500
A37: 429.30 · Board meeting exp. | B37: 237.84 | D37: 1500 | F37: 1050 | H37: 1500 | J37: 825 | L37: 1500
A38: 602.20 · Bor-Hydromet Services | B38: 9964.7 | D38: 5007 | F38: 4957.35 | H38: 5007 | J38: 0 | L38: 5000
A39: 704.00 · Bridges & Culverts | B39: 0 | D39: 3000 | F39: 350 | H39: 3000 | J39: 509.79 | L39: 5000
A40: 910.22 · Building Improvements | B40: 1535.98 | D40: 1500 | F40: 0 | H40: 1500 | J40: 550.84 | L40: 1000
A41: 706.00 · Canal/Bank Reapir / Moss Cntrl | B41: 5280.2 | D41: 3600 | F41: 16418.38 | H41: 7500 | J41: 2468.85 | L41: 13000
A42: 709.00 · Canal Lining Repairs & Maint | B42: 25733.11 | D42: 5000 | F42: 6885.33 | H42: 8000 | J42: 9678.29 | L42: 13000
A43: 428.00 · Computer services | B43: 14070.22 | D43: 12000 | F43: 13653.83 | H43: 13000 | J43: 10928.66 | L43: 15000
A44: 429.20 · Conferences & seminars | B44: 995.4 | D44: 2000 | F44: 1779.62 | H44: 2000 | J44: 274.39 | L44: 1500
A45: 451.00 · Copier lease (36 mo) | B45: 2909.61 | D45: 3060 | F45: 3458.37 | H45: 3200 | J45: 1967.7 | L45: 3200
A46: 450.00 · Debt - US Contract | B46: 28978.69 | D46: 28978.69 | F46: 28978.69 | H46: 29410
A47: 708.00 · Diversions | B47: 6295.04 | D47: 400 | F47: 33844.23 | H47: 1000 | J47: 134.93 | L47: 10000
A48: 714.00 · Elec Motor Fishwheels / Bear Cr | B48: 0 | D48: 200 | F48: 0 | H48: 200 | J48: 0 | L48: 2500
A49: 423.20 · Elections | B49: 0 | D49: 0 | F49: 0 | H49: 0 | J49: 576.51 | L49: 3000
A50: 904.00 · Equipment Rentals & Leases | B50: 513.21 | D50: 800 | F50: 1459.99 | H50: 1000 | J50: 511.01 | L50: 2000
A51: 415.10 · Fees & Licenses | H51: 180
A52: 426.10 · Garbage Disposal | B52: 1765.59 | D52: 1693.89 | F52: 1693.89 | H52: 1745 | J52: 1102.8 | L52: 2000
A53: 900.00 · Gas, Diesel & Oil | B53: 27138.72 | D53: 33000 | F53: 30022.86 | H53: 33000 | J53: 27094.28 | L53: 40000
A54: 417.00 · General Liab Ins/Bonds | B54: 45209 | D54: 45500 | F54: 46192 | H54: 46500 | J54: 52580 | L54: 55000
A55: 602.25 · GIS - Annual License Renewal | B55: 6900 | D55: 7000 | F55: 4140 | H55: 5000 | J55: 2715 | L55: 5000
A56: 415.18 · Government Ethics Charges | B56: 548.87 | D56: 950 | F56: 548.83 | H56: 600 | J56: 0 | L56: 548.83
A57: 706.01 · Joint System Proj. Consulting | B57: 0 | D57: 0 | F57: 0 | H57: 0 | J57: 14570.85 | L57: 35000
A58: 803.00 · Kime Reservoir / Fac. Maint | B58: 111.89 | D58: 250 | F58: 0 | H58: 250 | J58: 59.99
A59: 910.03 · Kime Reservoir - Impvts | B59: 0 | D59: 200 | F59: 0 | H59: 200 | J59: 370.79
A60: 910.13 · Large Tools | B60: 450 | D60: 400 | F60: 0 | H60: 400 | J60: 0 | L60: 20000
A61: 710.00 · Laterals / Auger Rods | B61: 1573.62 | D61: 1600 | F61: 0 | H61: 1600 | J61: 760.85 | L61: 1500
A62: 415.15 · Legal Exp-Adjudication | B62: 21581.91 | D62: 50000 | F62: 6937.29 | H62: 25000 | J62: 4990.82 | L62: 20000
A63: 903.00 · Licenses & Permits | B63: 500 | D63: 600 | F63: 544.8 | H63: 600 | J63: 540 | L63: 750
A64: 424.02 · Maint agreements / copier / SOS | B64: 2600.65 | D64: 3600 | F64: 2610.43 | H64: 3600 | J64: 2190.31 | L64: 3000
A65: 429.10 · Meetings - General | B65: 595.59 | D65: 600 | F65: 624.48 | H65: 600 | J65: 105.15 | L65: 500
A66: 429.00 · Membership dues | B66: 11936.53 | D66: 11000 | F66: 11997.45 | H66: 11000 | J66: 6841.16 | L66: 12500
A67: 425.10 · O&M crew & shop supplies | B67: 726.29 | D67: 700 | F67: 484.37 | H67: 700 | J67: 267.99 | L67: 5000
A68: 602.00 · O & M - T.I.D. | B68: 34820.39 | D68: 36128 | F68: 71207.89 | H68: 37673.08 | J68: 0 | L68: 35000
A69: 424.00 · Office equipment repairs | B69: 0 | D69: 200 | F69: 41.18 | H69: 200 | J69: 57.5 | L69: 2500
A70: 425.00 · Office maint cleaning | B70: 15.4 | D70: 300 | F70: 8.67 | H70: 300 | J70: 0 | L70: 500
A71: 423.00 · Office Supplies | B71: 4237.42 | D71: 5500 | F71: 3025.37 | H71: 4000 | J71: 3281.97 | L71: 5000 | M71: ALL INCLUSIVE PAYROLL BELOW
A72: PAYROLL EXPENSE | M72: BUDGET | N72: ACTUAL | O72: BUDGET | P72: ACTUAL
A73: 414.20 · Accrued Sick/Administration | B73: 6599 | D73: 6838 | F73: 0 | H73: 5655.52 | J73: 0 | M73: 2021 | N73: 2021 | O73: 2022 | P73: 2022
A74: 600.00 · Crew Salary / Sick Bonus | B74: 290.672.60 | D74: 309206 | F74: 311002.87 | H74: 321574.24 | J74: 219271.91 | L74: 325000 | M74: =SUM(D73:D83) -> 873602 | N74: =SUM(F73:F83) -> 790498.22 | O74: =SUM(H73:H83) -> 883753.36 | P74: =SUM(J73:J83) -> 590347.66
A75: 418.00 · Employer PR taxes | B75: 42028.84 | D75: 44356 | F75: 48302.32 | H75: 50290.24 | J75: 28657.35 | L75: 50000 | M75: Increase in wages per
A76: 414.17 · Finance/Accounting | B76: 43223.84 | D76: 44540 | F76: 36339.89 | H76: 0 | J76: 0 | M76: year by percentage. | O76: Pers/Taxes | P76: Total
A77: 421.00 · Group Insurance | B77: 119554.94 | D77: 133838 | F77: 110325.02 | H77: 146150.16 | J77: 91426.22 | L77: 95000 | M77: CPI 9.0% | N77: 4118 | O77: =SUM(N77*19%) -> 782.42 | P77: =SUM(N77:O77) -> 4900.42
A78: 411.10 · Manager's Salary | B78: 76989.6 | D78: 81073 | F78: 79872 | H78: 84315.92 | J78: 63448.87 | L78: 85000 | M78: CPI 8.5% | N78: 3890 | O78: =SUM(N78*19%) -> 739.1 | P78: =SUM(N78:O78) -> 4629.1
A79: 414.00 · Office Assistant/RRA | B79: 38295.16 | D79: 39549 | F79: 39593.08 | H79: 45449.04 | J79: 34818.32 | L79: 48000 | M79: CPI 8.0% | N79: 3661 | O79: 695.59 | P79: 4356.59
A80: 414.15 · Office Supervisor | B80: 48687.44 | D80: 50096 | F80: 13132.06 | H80: 60569.6 | J80: 26924.14 | L80: 59000 | M80: CPI 7.5% | N80: 3432 | O80: 652.08 | P80: 4084.08
A81: 411.20 · Operations Foreman/Admin Asst | B81: 32167.45 | D81: 46509 | F81: 31519.85 | H81: 32780.64 | J81: 27456.66 | L81: 36000 | M81: CPI 7.0% | N81: 3203 | O81: 608.57 | P81: 3811.57
A82: 419.00 · Retirement / PERS | B82: 105517.36 | D82: 105391 | F82: 104549.96 | H82: 119808 | J82: 87188.29 | L82: 110000 | M82: CPI 6.5% | N82: 2974 | O82: 565.06 | P82: 3539.06
A83: 420.00 · Workers Compensation | B83: 10855.5 | D83: 12206 | F83: 15861.17 | H83: 17160 | J83: 11155.9 | L83: 12000 | M83: CPI 6.0% | N83: 2746 | O83: =SUM(N83*19%) -> 521.74 | P83: 3267.74
A84: 425.00 · CDL Expense | B84: 0 | D84: 0 | F84: 0 | H84: 0 | J84: 0 | L84: 5000
A85: 609.00 · Physicals, Drug Screens | B85: 155 | D85: 200 | F85: 194 | H85: 200 | J85: 368 | L85: 1000
A86: 431.00 · Postage | B86: 1786.25 | D86: 1800 | F86: 1419.16 | H86: 1800 | J86: 1165.41 | L86: 2000
A87: 431.10 · Professional Fees | B87: 1786.25 | D87: 0 | F87: 4620 | H87: 18000 | J87: 10500 | L87: 5000
A88: 700.00 · Pump Repair - Electric | B88: 290.94 | D88: 500 | F88: 287.81 | H88: 500 | J88: 72.97 | L88: 1500
A89: 432.00 · Recording fees | B89: 3602 | D89: 4000 | F89: 2622 | H89: 3000 | J89: 114 | L89: 5000
A90: 902.30 · Repairs - Equipment | B90: 4689.96 | D90: 2500 | F90: 4099.44 | H90: 12500 | J90: 3943.41 | L90: 12000
A91: 902.00 · Repairs - Vehicles | B91: 2726.38 | D91: 6000 | F91: 5577.07 | H91: 6000 | J91: 3746.62 | L91: 12000
A92: 403.00 · RRVID Jnt Assesmnt From MID | B92: 8617.82 | D92: 8716 | F92: 0 | H92: 8716 | J92: 0 | L92: 8617.82
A93: 610.00 · Safety Equipment / Clothing | B93: 663.12 | D93: 1000 | F93: 831.72 | H93: 1500 | J93: 277.92 | L93: 2000 | S93: 0
A94: 910.45 · SDAO Safety | B94: 0 | D94: 0 | F94: 0 | H94: 0 | J94: 0 | L94: 5000
A95: 905.00 · Shop Acct Small Supplies | B95: 530.14 | D95: 400 | F95: 1171.99 | H95: 1000 | J95: 372.86 | L95: 2000
A96: 707.00 · Siphons | B96: 0 | D96: 250 | F96: 41.72 | H96: 250 | J96: 0
A97: 423.10 · Small furnishings / Equip | B97: 0 | D97: 300 | F97: 276.71 | H97: 300 | J97: 13.82 | L97: 1000
A98: 603.00 · Small Tools | B98: 523.03 | D98: 1000 | F98: 536.08 | H98: 1500 | J98: 216.16 | L98: 3000
A99: 460.00 · Smith West Consultation | B99: 12000 | D99: 12000 | F99: 12000 | H99: 12000 | J99: 7000
A100: 435.00 · Software / Dues / Subscription | B100: 0 | D100: 0 | F100: 1338.99 | H100: 1518.87 | J100: 606.93 | L100: 2000
A101: 711.00 · Spillways | B101: 915.38 | D101: 500 | F101: 3816.63 | H101: 1500 | J101: 0 | L101: 5000
A102: 601.00 · State Watermaster | B102: 0 | D102: 2000 | F102: 2000 | H102: 2000 | J102: 0 | L102: 2000
A103: 713.0 · Stock Gates | B103: 0 | D103: 100 | F103: 0 | H103: 100 | J103: 0 | L103: 2000
A104: 400.10 · Supplies - Chemicals | B104: 0 | D104: 100 | F104: 0 | H104: 100 | J104: 0 | L104: 3000
A105: 400.50 · Supplies - Welding | B105: 1129.96 | D105: 1000 | F105: 3042.22 | H105: 1000 | J105: 642.07 | L105: 1800
A106: 427.00 · Tele/radio/pgrs/cell/telem cel | B106: 9391.16 | D106: 13500 | F106: 9045.27 | H106: 9000 | J106: 5222.38 | L106: 10000
A107: 629.00 · Training | B107: 500 | D107: 0 | F107: 0 | H107: 500 | J107: 626.91 | L107: 1000
A108: 440.00 · Transfers Water Right Exp | B108: 2200 | D108: 1000 | F108: 0 | H108: 1000 | J108: 0
A109: 910.26 · Truck/Equipment& Safety | B109: 0 | D109: 0 | F109: 0 | H109: 0 | J109: 0 | L109: 1000
A110: 703.00 · Turns - Checks / Staff Gauges | B110: 1478.54 | D110: 2000 | F110: 5922.69 | H110: 6000 | J110: 59.6 | L110: 6000
A111: 426.00 · Utilities / propane / water sys | B111: 8471.68 | D111: 12000 | F111: 8267.6 | H111: 12000 | J111: 3578.77 | L111: 10000
A112: 910.12 · Yard Maint & Equip | B112: 24.51 | D112: 400 | F112: 82.98 | H112: 400 | J112: 0 | L112: 1000
B113: =SUM(B23:B112) -> 865952.65 | D113: =SUM(D23:D112) -> 1232085.58 | F113: =SUM(F23:F112) -> 1184899.88 | H113: =SUM(H23:H112) -> 1265703.31 | J113: =SUM(J23:J112) -> 794803.03 | L113: =SUM(L23:L112) -> 1289416.65
B115: =SUM(B20-B113) -> 530997.03 | D115: =SUM(D20-D113) -> 28573.42 | F115: 158246.24 | H115: 12842.69 | J115: 596792.3
